Cogmind - Beta 10.2 @@@ ROGUE MODE // 2021.08.18 @ 10:15:58 Player: Abstractlime Result: Destroyed by G-47 Trooper with Particle Gun Performance ------------- Evolutions (2) 1000 Regions Visited (3) 600 Robots Destroyed (29) 145 Value Destroyed (733) 733 Prototype IDs (0) 0 Alien Tech Used (0) 0 Bonus (0) 0 TOTAL SCORE: 2478 Bonus ------- None Cogmind --------- Core Integrity 0/550 Matter 126/300 Energy 100/100 System Corruption 0% Temperature Cool (9) Movement Core (400) Ox7 Location -8/Materials Parts ------- > --- POWER (2) -------- (None) > --- PROPULSION (3) --- (None) > --- UTILITY (3) ------ Medium Storage Unit Large Storage Unit > --- WEAPON (3) ------- (None) > --- INVENTORY (14) --- Small Storage Unit Large Storage Unit Peak State ------------ > --- POWER ------------ Ion Engine Light Nuclear Core > --- PROPULSION ------- Aluminum Leg Aluminum Leg Aluminum Leg > --- UTILITY ---------- Large Storage Unit Shield Generator > --- WEAPON ----------- Particle Gun Heavy Assault Rifle Heavy Assault Rifle > --- INVENTORY -------- Light Ion Engine Light Treads Small Storage Unit Medium Storage Unit Large Storage Unit EM Pulse Gun Medium Laser Heavy Assault Rifle Grenade Launcher [Rating: 17] Favorites ----------- Power Ion Engine Engine Ion Engine Power Core Light Nuclear Core Propulsion Light Treads Treads Light Treads Leg Aluminum Leg Wheel Wheel Utility Medium Storage Unit Device Shield Generator Storage Medium Storage Unit Weapon Heavy Assault Rifle Energy Gun Small Laser Ballistic Gun Heavy Assault Rifle Launcher Grenade Launcher Build | -11 -10 -9 -8 ------- Run | Scr Mat Mat Mat Slots Evolved 4 | . . 2 2 Power 1 | . . . 1 Propulsion 1 | . . 1 . Utility 1 | . . . 1 Weapon 1 | . . 1 . Parts Attached 31 | 6 6 5 14 Power 4 | 1 . . 3 Engine 3 | 1 . . 2 Core 1 | . . . 1 Reactor . | . . . . Propulsion 10 | 3 . 3 4 Treads 4 | 2 . . 2 Leg 5 | 1 . 3 1 Wheel 1 | . . . 1 Hover . | . . . . Flight . | . . . . Utility 5 | 1 1 1 2 Device 1 | . . 1 . Storage 4 | 1 1 . 2 Processor . | . . . . Hackware . | . . . . Protection . | . . . . Artifact . | . . . . Weapon 12 | 1 5 1 5 Energy Gun 6 | . 3 . 3 Energy Cannon . | . . . . Ballistic Gun 5 | 1 2 1 1 Ballistic Cannon . | . . . . Launcher 1 | . . . 1 Special Weapon . | . . . . Impact Weapon . | . . . . Slashing Weapon . | . . . . Piercing Weapon . | . . . . Special Melee Weapon . | . . . . Unidentified Prototypes . | . . . . Parts Lost 20 | . 1 1 18 Power 3 | . . . 3 Propulsion 8 | . . 1 7 Utility 1 | . . . 1 Weapon 8 | . 1 . 7 Highest Loss Streak 8 | . 1 1 8 Average Slot Usage (%) 80 | . 84 91 67 Engine 11 | . 14 11 6 Core 1 | . . . 4 Treads 17 | . 28 8 3 Leg 8 | . . 24 15 Device 1 | . . 3 3 Storage 13 | . 14 11 13 Energy Gun 9 | . 16 . 3 Ballistic Gun 15 | . 11 33 13 Naked Turns . | . . . . Heaviest Build 40 | 10 19 24 40 Greatest Support 40 | 40 40 40 30 Greatest Overweight (x) 9 | 1 . 1 9 Average Overweight (x) . | . . . 1 Largest Inventory Capacity 14 | 6 8 8 14 Average Capacity 8 | 5 7 8 11 Most Carried 9 | 5 8 8 9 Average Carried 6 | 3 6 7 5 Final Capacity 14 | 6 8 8 14 Final Carried 8 | 5 8 8 2 Class Distribution -------------------- 68% | Mutant 14% | Gunner 8% | Tank 8% | Scavenger-Tank Dominant Class ---------------- Mutant | -10/Materials Gunner | -9/Materials Mutant | -8/Materials Resources | -11 -10 -9 -8 ----------- Run | Scr Mat Mat Mat Matter Collected 708 | 173 192 95 248 Remotely . | . . . . Salvage Created 812 | . 264 130 418 Parts 67 | . 25 12 30 Haulers Intercepted . | . . . . Recyclers Shooed . | . . . . Parts Field Recycled . | . . . . Retrieved Matter . | . . . . Parts Self-Destructed . | . . . . Prevented . | . . . . Kills | -11 -10 -9 -8 ------- Run | Scr Mat Mat Mat Combat Hostiles Destroyed 23 | . 8 4 11 Guns 16 | . 8 4 4 AOE 7 | . . . 7 Classes Destroyed 8 | . 3 1 4 Worker 1 | . . . 1 Builder 2 | . . . 2 Watcher 3 | . 2 . 1 Swarmer 10 | . 5 2 3 Grunt 9 | . 3 1 5 Brawler 1 | . . . 1 Sentry 2 | . . 1 1 Hunter 1 | . . . 1 Best Kill Streak 6 | . 3 3 6 Combat Bots Only 3 | . 3 3 3 Max Kills in Single Turn 3 | . 2 1 3 Gunslinging 1 | . 1 . . Exploded 2 | . . . 2 Melee . | . . . . Uniques/NPCs Destroyed . | . . . . Combat | -11 -10 -9 -8 -------- Run | Scr Mat Mat Mat Damage Taken 2693 | . 556 166 1971 Core 651 | . 92 6 553 Absorbed by Shields 116 | . . 4 112 Core Remaining (%) 87 | 100 63 98 . Volleys Fired 79 | . 37 8 34 Largest 3 | . 2 3 3 Hottest 111 | . 90 69 111 Shots Fired 182 | . 69 24 89 Gun 171 | . 69 24 78 Cannon . | . . . . Launcher 11 | . . . 11 Special . | . . . . Kinetic 128 | . 39 24 65 Thermal 36 | . 25 . 11 Explosive 11 | . . . 11 Electromagnetic 7 | . 5 . 2 Robot Hit Streak 9 | . 9 5 8 Robot Miss Streak 6 | . 4 4 6 Penetration Max . | . . . . Secondary Targets 2 | . 1 . 1 Max Gunslinging Chain 1 | . 1 . 1 Shots Hit Robots 96 | . 41 10 45 Core Hits 50 | . 13 5 32 Critical Hits 1 | . . . 1 Critical Kills . | . . . . Critical Parts Destroyed 1 | . . . 1 Melee Attacks . | . . . . Impact . | . . . . Slashing . | . . . . Piercing . | . . . . Sneak Attacks . | . . . . Combat Hostiles . | . . . . Follow-up Attacks . | . . . . Damage Inflicted 1969 | . 521 156 1292 Guns 1280 | . 521 156 603 Cannons . | . . . . Explosions 689 | . . . 689 Melee . | . . . . Ramming . | . . . . Kinetic 979 | . 312 156 511 Thermal 234 | . 154 . 80 Explosive 689 | . . . 689 Electromagnetic 67 | . 55 . 12 Impact . | . . . . Slashing . | . . . . Piercing . | . . . . Highest Corruption . | . . . . Average Corruption . | . . . . Corruption Purged . | . . . . Overload Shots . | . . . . Overflow Damage 4 | . . . 4 Projectiles . | . . . . Explosions 4 | . . . 4 Melee . | . . . . Knockbacks . | . . . . Impact . | . . . . Kinetic . | . . . . Secondary . | . . . . Self-Inflicted Damage 39 | . . . 39 Shots 2 | . . . 2 Rammed . | . . . . Targets Rammed . | . . . . Kicked . | . . . . Crushed . | . . . . Highest Temperature 242 | . 242 9 240 Average Temperature 83 | . 59 9 106 Received Heat Transfer 885 | . 162 33 690 Siege Activations . | . . . . Robots Corrupted . | . . . . Combat Hostiles . | . . . . Parts Fried . | . . . . Impact Corruptions . | . . . . Robots Melted . | . . . . Combat Hostiles . | . . . . Parts Melted . | . . . . Heat Transferred 643 | . 421 . 222 Parts Sabotaged . | . . . . Parts Stolen . | . . . . Parts Stripped . | . . . . Power Chain Reactions . | . . . . Missiles Intercepted . | . . . . Alert | -11 -10 -9 -8 ------- Run | Scr Mat Mat Mat Peak Influence 317 | . 165 219 317 Initial 92 | . . 69 92 Average 102 | . 57 178 156 Maximum Alert Level 1 | . . 1 1 Low Security (%) 84 | 100 100 36 80 Level 1 15 | . . 63 19 Level 2 . | . . . . Level 3 . | . . . . Level 4 . | . . . . Level 5 . | . . . . High Security . | . . . . Max Security . | . . . . Squads Dispatched 5 | . 1 . 4 Investigation 1 | . . . 1 Extermination . | . . . . Reinforcement 4 | . 1 . 3 Assault . | . . . . Garrison . | . . . . Intercept . | . . . . Construction Impeded 1 | . . . 1 Haulers Reinforced . | . . . . Stealth | -11 -10 -9 -8 --------- Run | Scr Mat Mat Mat Distress Signals 1 | . 1 . . Communications Jammed . | . . . . Distress Signals . | . . . . Times Spotted 45 | . 17 7 21 Peak Tracking Total 7 | . 5 4 7 Tactical Retreats 3 | . 2 1 . Traps | -11 -10 -9 -8 ------- Run | Scr Mat Mat Mat Traps Triggered 2 | . 1 . 1 Indirectly . | . . . . Trap Hack Attempts . | . . . . Triggered . | . . . . Disarmed . | . . . . Reprogrammed 6 | . 6 . . Reused . | . . . . Traps Extracted . | . . . . Installed . | . . . . Triggered . | . . . . Machines | -11 -10 -9 -8 ---------- Run | Scr Mat Mat Mat Machines Disabled . | . . . . Max in Single Turn . | . . . . Machines Sabotaged . | . . . . Garrisons Compromised . | . . . . Overloaded Fab Kills . | . . . . Fab Network Shutdowns . | . . . . Hacking | -11 -10 -9 -8 --------- Run | Scr Mat Mat Mat Machines Accessed 3 | . 3 . . Terminals 3 | . 3 . . Fabricators . | . . . . Repair Stations . | . . . . Recycling Units . | . . . . Scanalyzers . | . . . . Garrison Access . | . . . . Total Hacks 9 | . 9 . . Successful 6 | . 6 . . Failed 3 | . 3 . . Catastrophic . | . . . . Database Lockouts . | . . . . Manual . | . . . . Terminals 9 | . 9 . . Fabricators . | . . . . Repair Stations . | . . . . Recycling Units . | . . . . Scanalyzers . | . . . . Garrison Access . | . . . . Terminal Hacks 6 | . 6 . . Locate Traps 2 | . 2 . . Reprogram Traps 1 | . 1 . . Investigation Status 1 | . 1 . . Reinforcement Status 1 | . 1 . . Zone Layout 1 | . 1 . . Fabricator Hacks . | . . . . Repair Station Hacks . | . . . . Recycling Unit Hacks . | . . . . Scanalyzer . | . . . . Garrison Access Hacks . | . . . . Unauthorized Hacks . | . . . . Terminals . | . . . . Fabricators . | . . . . Repair Stations . | . . . . Recycling Units . | . . . . Scanalyzers . | . . . . Garrison Access . | . . . . Data Cores Recovered . | . . . . Used . | . . . . Hacking Detections 2 | . 2 . . Full Trace Events . | . . . . Feedback Events . | . . . . Feedback Blocked . | . . . . Robot Schematics Acquired . | . . . . Robots Built . | . . . . Matter . | . . . . Time . | . . . . Total Robot Build Rating . | . . . . Part Schematics Acquired . | . . . . Parts Built . | . . . . Matter . | . . . . Time . | . . . . Total Part Build Rating . | . . . . Parts Repaired . | . . . . Time . | . . . . Parts Recycled . | . . . . Recycled Matter . | . . . . Retrieved Matter . | . . . . Retrieved Components . | . . . . Parts Scanalyzed . | . . . . Part Schematics Acquired . | . . . . Parts Damaged . | . . . . Bothacking | -11 -10 -9 -8 ------------ Run | Scr Mat Mat Mat Used RIF Installer . | . . . . Robots Hacked . | . . . . Non-combat . | . . . . Combat . | . . . . Robot Hacks Applied . | . . . . Relay Couplers Released . | . . . . Robots Rewired . | . . . . Allies Hacked . | . . . . Hacks Repelled . | . . . . Allies | -11 -10 -9 -8 -------- Run | Scr Mat Mat Mat Total Allies . | . . . . Largest Group . | . . . . Highest-Rated Group . | . . . . Highest-Rated Ally . | . . . . Total Orders . | . . . . Ally Attacks . | . . . . Total Damage . | . . . . Kills . | . . . . Allies Corrupted . | . . . . Allies Melted . | . . . . Intel | -11 -10 -9 -8 ------- Run | Scr Mat Mat Mat Robot Analysis Total . | . . . . Derelict Logs Recovered . | . . . . Drone Launches . | . . . . Drone Recoveries . | . . . . Exploration | -11 -10 -9 -8 ------------- Run | Scr Mat Mat Mat Turns Passed 1428 | 67 713 220 428 Spaces Moved 728 | 37 352 141 198 Core 19 | 9 . . 10 Treads 447 | 27 352 33 35 Legs 220 | 1 . 108 111 Wheels 42 | . . . 42 Hover . | . . . . Flight . | . . . . Fastest Speed 50 | 50 160 120 100 Average Speed 151 | 141 160 131 150 Slowest Speed 500 | 160 160 160 500 Overloaded Moves . | . . . . Propulsion Burnouts . | . . . . Robots Hopped . | . . . . Cave-ins Triggered . | . . . . Exploration Rate (%) 28 | 3 67 15 30 Regions Visited 3 Branch Regions . Pre-discovered Areas . | . . . . Known Exits Taken . | . . . . Unknown Exits Taken 3 | 1 1 1 . Scrap Searched . | . . . . Spaces Dug . | . . . . Terrain Destroyed 60 | . . . 60 Melee . | . . . . Projectile . | . . . . AOE 60 | . . . 60 Terrain Rammed . | . . . . Walls Destroyed . | . . . . Machines Disabled . | . . . . Actions | -11 -10 -9 -8 --------- Run | Scr Mat Mat Mat Total 897 | 50 434 156 257 Wait 33 | . 31 . 2 Move 725 | 36 351 140 198 Hop . | . . . . Pick Up 25 | 8 7 3 7 Fast Attach 3 | 2 . 1 . Attach 20 | 3 2 3 12 Detach . | . . . . Swap 8 | 1 4 1 2 Drop 4 | . 2 . 2 Fire 79 | . 37 8 34 Melee . | . . . . Ram . | . . . . Kick . | . . . . Crush . | . . . . Escape Stasis . | . . . . Rewire . | . . . . Trap . | . . . . Miscellaneous . | . . . . Route ------- -11/Scrapyard -10/Materials (discovered 2 exits: [*Mat] / [*Min]) -9/Materials -8/Materials History --------- Turn | Location | Event 9 | -11/Scrapyard | Discovered new exit (range 16) 68 | -11/Scrapyard | Entered Materials 310 | -10/Materials | Build established: Mutant 383 | -10/Materials | Discovered new exit (range 6) 433 | -10/Materials | Discovered new exit (range 9) 781 | -10/Materials | Entered another Materials area 781 | -9/Materials | Evolved 2 slots: Propulsion x1, Weapon x1 992 | -9/Materials | Discovered new exit (range 7) 1001 | -9/Materials | Entered another Materials area 1001 | -8/Materials | Evolved 2 slots: Power x1, Utility x1 1224 | -8/Materials | Lost 5 parts (1p1n1u2w) 1299 | -8/Materials | Lost 8 parts (2p3n3w) 1399 | -8/Materials | Core integrity fell below 50% 1411 | -8/Materials | Core integrity fell below 20% 1425 | -8/Materials | Lost 5 parts (3n2w) 1429 | -8/Materials | Destroyed by G-47 Trooper with Particle Gun Last Messages --------------- U-05 Engineer destroyed. ALERT: Construction progress impeded, dispatching reinforcements to local area. U-05 Engineer lays Concrete. S-10 Pest destroyed. U-05 Engineer destroyed. U-05 Engineer lays Concrete. Aluminum Leg destroyed. Destroyed Aluminum Leg. K-01 Serf collects debris. ALERT: Hostiles spotted, dispatching reinforcements to Terminal M006. Wheel destroyed. K-01 Serf collects debris. Grenade Launcher destroyed. Hvy. Assault Rifle destroyed. The unstable cave ceiling collapses. Lgt. Treads destroyed. Electrolysis Chamber disabled. K-01 Serf collects debris. Map ----- +----------------------------------------------------+ | #???????????????????????????????? | | / #???????????????????????????????? | | #???????????????????????????????? | | #???????????????????????????????? | | # ##???????????????????????????????? | | # #???????????????????????????????? | | # #???????????????????????????????? | | #???????????????????????????????? | | #???????????????????????????????? | | = ##???????????????????????????????? | | # ############+######### ?????????? | | ?????????? | | ?????????? | | "" """ ?????????? | | # ########## "T """ #?????????? | | # #????????# "" """ #?????????? | | # #????????# #?????????? | | # #????????# #?????????? | | ??""" ??# """ #?????????? | | ??"""" ?# """ #?????????? | | ?""""" # """ #?"???????? | | ?""""" + # ???????? | | # """ # !!! + ????????? | | #### ??# !! "" #?????????? | | ???# ????# !! """ ##?#####???? | | ???# ??????# Y"" @# #???? | | ??????####### g + """ #???? | | ????+ k g # """ #???? | | ????# #### #??""" #???? | | ????#+#+#######;###+#??####???? #???? | | ?????????????????? ????????????#???? | | ?????????????????? ????????????????? | | ?????????????????""" #???????????????? | | ?????????????????""" #???????????????? | | ???????????????? """ #???????????????? | | ???????????????? #???????????????? | | ??????????????? ? #???????????????? | | ??????????????? ??! ????????????????? | | ????????????????????#????????????????? | | | | | | | | | | | | | | | | | | | | | | | +----------------------------------------------------+ Best States ------------- Heat Dissipation 31 Energy Generation 19 Energy Capacity 400 Matter Stores 300 Matter Capacity 300 Sight Range 16 Terrain Scan Density 10 Evasion (%) 40 Recoil Reduction 2 Item Schematics ----------------- None Robot Schematics ------------------ None Fabricated ------------ Nothing Alien Tech Used ----------------- None Achievements -------------- None Challenges ------------ None Game ------ Seed MakeshiftSignalStorm Manual? 0 Play Time 00:19:13 Cumulative 7.1 hours Start 2021.08.18 @ 09:55:03 End 2021.08.18 @ 10:15:58 Sessions 1 Manual Loads 0 Difficulty Rogue Special Mode None Game No. 11 Rogue 11 Adventurer 0 Explorer 0 Win Type - Total 0 Types 0/0/0/0/0/0/0/0/0 Lore% 8 Gallery% 12 Achievement% 10 Wizard Run 0 Options --------- ASCII 0 Keyboard 0 Movement Numpad Keybinds 0 Fullscreen 1 Font 16/Smallcaps Map View 50x54 Tactical HUD 0 Map Filters NONE Filters NONE Steam 1 RUN: f1468c2b-e894-4a65-9218-94b2e4f0cbe3